[Event "FRA-ch Youth U20W 2019"]
[Site "Hyeres"]
[Date "2019.04.17"]
[Round "5.5"]
[White "Anastasie, Laure"]
[Black "Fromherz, Audrey"]
[Result "1-0"]
[ECO "B25"]
[WhiteElo "1445"]
[BlackElo "1531"]
[Annotator "NA RC"]
[PlyCount "151"]
[EventDate "2019.04.14"]
[EventType "swiss"]
[EventCountry "FRA"]
[SourceTitle "playchess.com"]
[Source "ChessBase"]
[SourceQuality "1"]
[TimeControl "5400+30"]

1. e4 {[%emt 0:00:00]} c5 {[%emt 0:00:00]} 2. Nc3 {[%emt 0:00:00]} Nc6 {[%emt 0:00:24]} 3. g3 {[%emt 0:00:00]} g6 {[%emt 0:00:10]} 4. Bg2 {[%emt 0:00:00]} Bg7 {[%emt 0:00:29]} 5. d3 {[%emt 0:00:10]} e6 {[%emt 0:00:58]} 6. Be3 {[%emt 0:00:25]} d6 {[%emt 0:04:13]} 7. Nh3 {[%emt 0:05:03]} Nge7 {[%emt 0:05:47]} 8. O-O {[%emt 0:01:33]} O-O {[%emt 0:04:42]} 9. Qd2 {[%emt 0:00:09]} Nd4 {[%emt 0:02:15]} 10. f4 {[%emt 0:02:21]} d5 {[%emt 0:16:13]} 11. Nd1 {[%emt 0:13:29]} c4 {[%emt 0:21:06]} 12. c3 {[%emt 0:06:21]} Ndc6 {[%emt 0:04:23]} 13. dxc4 {[%emt 0:09:06]} dxc4 {[%emt 0:08:28]} 14. Qe2 {[%emt 0:02:30]} b5 {[%emt 0:02:29]} 15. e5 {[%emt 0:00:33]} Bb7 {[%emt 0:01:19]} 16. a4 {[%emt 0:01:22]} a6 {[%emt 0:01:14]} 17. Ndf2 {[%emt 0:03:03]} Nf5 {[%emt 0:01:01]} 18. Bc5 {[%emt 0:00:38]} Re8 {[%emt 0:01:04]} 19. Ne4 {[%emt 0:00:45]} Na5 {[%emt 0:04:47]} 20. Rfd1 {[%emt 0:07:54]} Qc7 {[%emt 0:01:27]} 21. Bf2 {[%emt 0:06:08]} Nb3 {[%emt 0:03:51]} 22. Ra3 {[%emt 0:00:45]} Red8 {[%emt 0:01:23]} 23. axb5 {[%emt 0:02:27]} axb5 {[%emt 0:01:38]} 24. Rxa8 {[%emt 0:01:38]} Bxa8 {[%emt 0:02:51]} 25. Nhg5 {[%emt 0:02:23]} Qe7 {[%emt 0:03:27]} 26. Bb6 {[%emt 0:05:47]} Rb8 {[%emt 0:01:26]} 27. Bf2 {[%emt 0:00:47]} h6 {[%emt 0:00:35]} 28. Nf3 {[%emt 0:01:39]} Rd8 {[%emt 0:00:36]} 29. Nfd2 {[%emt 0:02:20]} Nxd2 {[%emt 0:01:57]} 30. Rxd2 {[%emt 0:00:15]} Bd5 {[%emt 0:00:57]} 31. Nc5 {[%emt 0:01:26]} Bxg2 {[%emt 0:00:38]} 32. Kxg2 {[%emt 0:00:36]} Qc7 {[%emt 0:01:07]} 33. Ne4 {[%emt 0:00:39]} Ra8 {[%emt 0:01:45]} 34. Nd6 {[%emt 0:01:28]} Qc6+ {[%emt 0:00:35]} 35. Qf3 {[%emt 0:01:02]} Qxf3+ {[%emt 0:00:28]} 36. Kxf3 {[%emt 0:00:07]} Rb8 {[%emt 0:00:33]} 37. Nxf5 {[%emt 0:00:13]} gxf5 {[%emt 0:00:32]} 38. Bc5 {[%emt 0:00:11]} Bf8 {[%emt 0:00:47]} 39. Bxf8 {[%emt 0:00:08]} Kxf8 {[%emt 0:00:02]} 40. Rd6 {[%emt 0:00:17]} b4 {[%emt 0:01:15]} 41. Rc6 {[%emt 0:01:26]} bxc3 {[%emt 0:00:14]} 42. bxc3 {[%emt 0:00:10]} Rb2 {[%emt 0:00:29]} 43. h4 {[%emt 0:00:20]} Kg7 {[%emt 0:00:35]} 44. Rxc4 {[%emt 0:00:07]} Rb7 {[%emt 0:00:26]} 45. Rc6 {[%emt 0:00:29]} Kg6 {[%emt 0:00:13]} 46. Rc8 {[%emt 0:00:30]} Rd7 {[%emt 0:01:06]} 47. c4 {[%emt 0:00:39]} f6 {[%emt 0:00:38]} 48. exf6 {[%emt 0:00:35]} Kxf6 {[%emt 0:00:04]} 49. c5 {[%emt 0:00:18]} Rd3+ {[%emt 0:00:37]} 50. Kg2 {[%emt 0:00:21]} Rc3 {[%emt 0:00:04]} 51. Rc7 {[%emt 0:00:39]} h5 {[%emt 0:00:43]} 52. Rc8 {[%emt 0:00:59]} Kg7 {[%emt 0:00:10]} 53. c6 {[%emt 0:00:24]} Kf7 {[%emt 0:00:15]} 54. c7 {[%emt 0:01:14]} Ke7 {[%emt 0:01:56]} 55. Rh8 {[%emt 0:00:08]} Rxc7 {[%emt 0:00:19]} 56. Rxh5 {[%emt 0:00:07]} Kf6 {[%emt 0:00:08]} 57. Rh6+ {[%emt 0:00:41]} Kg7 {[%emt 0:00:05]} 58. Rxe6 {[%emt 0:00:22]} Kf7 {[%emt 0:00:28]} 59. Rh6 {[%emt 0:00:26]} Kg7 {[%emt 0:00:04]} 60. Rh5 {[%emt 0:00:28]} Kg6 {[%emt 0:00:35]} 61. Rg5+ {[%emt 0:00:11]} Kf6 {[%emt 0:00:05]} 62. h5 {[%emt 0:00:16]} Rh7 {[%emt 0:00:18]} 63. Kf3 {[%emt 0:00:22]} Rh6 {[%emt 0:01:06]} 64. g4 {[%emt 0:00:33]} fxg4+ {[%emt 0:00:38]} 65. Kxg4 {[%emt 0:00:09]} Rh7 {[%emt 0:00:55]} 66. Rg6+ {[%emt 0:00:51]} Kf7 {[%emt 0:00:05]} 67. Kg5 {[%emt 0:00:20]} Rh8 {[%emt 0:01:29]} 68. h6 {[%emt 0:00:09]} Rh7 {[%emt 0:00:17]} 69. f5 {[%emt 0:00:52]} Kf8 {[%emt 0:00:25]} 70. Rf6+ {[%emt 0:00:34]} Kg8 {[%emt 0:00:59]} 71. Kg6 {[%emt 0:00:34]} Rd7 {[%emt 0:00:33]} 72. Rc6 {[%emt 0:00:32]} Rd8 {[%emt 0:00:33]} 73. f6 {[%emt 0:00:26]} Rb8 {[%emt 0:00:10]} 74. h7+ {[%emt 0:00:43]} Kh8 {[%emt 0:00:04]} 75. Re6 {[%emt 0:00:41]} Rf8 {[%emt 0:01:05]} 76. f7 {[%emt 0:00:13]} 1-0

[Event "FRA-ch Youth U20W 2019"]
[Site "Hyeres"]
[Date "2019.04.17"]
[Round "5.6"]
[White "Guigue, Marie-Celine"]
[Black "Azan, Sarah"]
[Result "1/2-1/2"]
[ECO "B12"]
[WhiteElo "1338"]
[BlackElo "1349"]
[Annotator "NA RC"]
[PlyCount "84"]
[EventDate "2019.04.14"]
[EventType "swiss"]
[EventCountry "FRA"]
[SourceTitle "playchess.com"]
[Source "ChessBase"]
[SourceQuality "1"]
[TimeControl "5400+30"]

1. e4 {[%emt 0:00:00]} c6 {[%emt 0:00:00]} 2. d4 {[%emt 0:00:00]} d5 {[%emt 0:00:00]} 3. e5 {[%emt 0:00:00]} Bf5 {[%emt 0:00:00]} 4. Nf3 {[%emt 0:00:14]} e6 {[%emt 0:00:04]} 5. Bd3 {[%emt 0:01:22]} Bxd3 {[%emt 0:00:12]} 6. Qxd3 {[%emt 0:00:02]} Nd7 {[%emt 0:01:02]} 7. Be3 {[%emt 0:01:13]} c5 {[%emt 0:01:48]} 8. c3 {[%emt 0:00:24]} c4 {[%emt 0:02:25]} 9. Qc2 {[%emt 0:01:24]} Ne7 {[%emt 0:02:31]} 10. O-O {[%emt 0:00:58]} Nf5 {[%emt 0:03:04]} 11. Re1 {[%emt 0:05:59]} Be7 {[%emt 0:05:12]} 12. Nbd2 {[%emt 0:01:09]} O-O {[%emt 0:02:31]} 13. h3 {[%emt 0:02:04]} b5 {[%emt 0:08:34]} 14. a3 {[%emt 0:05:27]} Re8 {[%emt 0:16:27]} 15. Nf1 {[%emt 0:05:18]} Nxe3 {[%emt 0:02:33]} 16. Rxe3 {[%emt 0:01:31]} g6 {[%emt 0:01:35]} 17. Re2 {[%emt 0:06:02]} Bf8 {[%emt 0:00:38]} 18. Qd2 {[%emt 0:01:20]} Bg7 {[%emt 0:02:34]} 19. N1h2 {[%emt 0:02:20]} Nf8 {[%emt 0:01:30]} 20. Ng4 {[%emt 0:00:36]} h5 {[%emt 0:00:47]} 21. Nh6+ {[%emt 0:02:19]} Bxh6 {[%emt 0:01:49]} 22. Qxh6 {[%emt 0:00:06]} Nh7 {[%emt 0:01:30]} 23. Qe3 {[%emt 0:01:09]} Qe7 {[%emt 0:02:33]} 24. Ree1 {[%emt 0:01:25]} a6 {[%emt 0:01:13]} 25. Kf1 {[%emt 0:03:05]} Qf8 {[%emt 0:02:56]} 26. Ng5 {[%emt 0:01:06]} Nxg5 {[%emt 0:00:35]} 27. Qxg5 {[%emt 0:00:07]} Kh7 {[%emt 0:00:47]} 28. Re3 {[%emt 0:00:44]} Qh6 {[%emt 0:01:49]} 29. Qxh6+ {[%emt 0:00:51]} Kxh6 {[%emt 0:00:11]} 30. Rf3 {[%emt 0:00:14]} Rf8 {[%emt 0:00:26]} 31. Rf6 {[%emt 0:00:57]} Kg5 {[%emt 0:00:38]} 32. g3 {[%emt 0:00:40]} Ra7 {[%emt 0:00:32]} 33. Kg2 {[%emt 0:02:07]} Rh8 {[%emt 0:00:23]} 34. Kf3 {[%emt 0:04:30]} h4 {[%emt 0:01:18]} 35. g4 {[%emt 0:00:36]} Kh6 {[%emt 0:00:41]} 36. Ke3 {[%emt 0:04:52]} Kg5 {[%emt 0:00:22]} 37. Kf3 {[%emt 0:01:50]} Rh7 {[%emt 0:00:17]} 38. Ke3 {[%emt 0:03:07]} Rh8 {[%emt 0:00:19]} 39. Kf3 {[%emt 0:01:16]} Rh7 {[%emt 0:00:50]} 40. Ke3 {[%emt 0:00:32]} Rh8 {[%emt 0:00:12]} 41. Kf3 {[%emt 0:00:42]} Rh7 {[%emt 0:00:17]} 42. Ke3 {[%emt 0:00:21]} Rh8 {[%emt 0:00:10] Ke4 [%clk 0:00:00]} 1/2-1/2

[Event "FRA-ch Youth U20W 2019"]
[Site "Hyeres"]
[Date "2019.04.18"]
[Round "6.1"]
[White "Aubert, Laurane"]
[Black "Aouachria, Marwa"]
[Result "1/2-1/2"]
[ECO "B42"]
[WhiteElo "1953"]
[BlackElo "1738"]
[Annotator "NA"]
[PlyCount "106"]
[EventDate "2019.04.14"]
[EventType "swiss"]
[EventCountry "FRA"]
[SourceTitle "playchess.com"]
[Source "ChessBase"]
[SourceQuality "1"]
[TimeControl "5400+30"]

1. e4 {[%emt 0:00:00]} c5 {[%emt 0:00:03]} 2. Nc3 {[%emt 0:00:00]} e6 {[%emt 0:00:04]} 3. Nge2 {[%emt 0:00:00]} a6 {[%emt 0:00:21]} 4. d4 {[%emt 0:00:00]} cxd4 {[%emt 0:00:04]} 5. Nxd4 {[%emt 0:00:00]} d6 {[%emt 0:00:42]} 6. Be3 {[%emt 0:00:39]} Nf6 {[%emt 0:00:08]} 7. Bd3 {[%emt 0:00:29]} Be7 {[%emt 0:00:11]} 8. O-O {[%emt 0:00:20]} Qc7 {[%emt 0:00:11]} 9. Nb3 {[%emt 0:04:08]} b5 {[%emt 0:01:42]} 10. a3 {[%emt 0:00:24]} Bb7 {[%emt 0:00:15]} 11. Qe2 {[%emt 0:00:53]} Nbd7 {[%emt 0:00:54]} 12. f4 {[%emt 0:01:26]} Nc5 {[%emt 0:03:55]} 13. Nxc5 {[%emt 0:08:49]} dxc5 {[%emt 0:00:04]} 14. e5 {[%emt 0:00:56]} Nd5 {[%emt 0:14:34]} 15. Nxd5 {[%emt 0:15:47]} exd5 {[%emt 0:00:25]} 16. Qg4 {[%emt 0:00:15]} g6 {[%emt 0:06:30]} 17. Rae1 {[%emt 0:03:30]} Qd7 {[%emt 0:07:39]} 18. f5 {[%emt 0:10:50]} O-O-O {[%emt 0:02:22]} 19. e6 {[%emt 0:01:03]} fxe6 {[%emt 0:01:34]} 20. fxe6 {[%emt 0:00:05]} Qc6 {[%emt 0:04:02]} 21. Rf7 {[%emt 0:10:01]} Rde8 {[%emt 0:03:56]} 22. Bf4 {[%emt 0:07:43]} Qb6 {[%emt 0:19:37]} 23. Kh1 {[%emt 0:02:27]} d4 {[%emt 0:03:33]} 24. c3 {[%emt 0:08:01]} h5 {[%emt 0:06:44]} 25. Qh3 {[%emt 0:00:44]} g5 {[%emt 0:01:59]} 26. Be5 {[%emt 0:15:55]} g4 {[%emt 0:04:27]} 27. Qg3 {[%emt 0:00:03]} h4 {[%emt 0:00:15]} 28. Qf4 {[%emt 0:02:48]} Rh5 {[%emt 0:12:43]} 29. cxd4 {[%emt 0:03:01]} h3 {[%emt 0:01:11]} 30. Rc1 {[%emt 0:02:45]} hxg2+ {[%emt 0:02:49]} 31. Kg1 {[%emt 0:00:03]} Bg5 {[%emt 0:00:09]} 32. Rxc5+ {[%emt 0:02:09]} Qxc5 {[%emt 0:00:42]} 33. dxc5 {[%emt 0:00:34]} Bxf4 {[%emt 0:00:18]} 34. Bxf4 {[%emt 0:00:11]} Rxc5 {[%emt 0:00:30]} 35. b4 {[%emt 0:00:57]} Rc3 {[%emt 0:01:12]} 36. Bf5 {[%emt 0:00:27]} Bd5 {[%emt 0:01:40]} 37. Bxg4 {[%emt 0:00:33]} Bxe6 {[%emt 0:00:33]} 38. Bxe6+ {[%emt 0:00:30]} Rxe6 {[%emt 0:00:05]} 39. Kxg2 {[%emt 0:00:29]} Rxa3 {[%emt 0:00:10]} 40. Rc7+ {[%emt 0:00:18]} Kd8 {[%emt 0:00:11]} 41. Rc2 {[%emt 0:00:39]} Rb3 {[%emt 0:00:53]} 42. Bc7+ {[%emt 0:00:32]} Ke8 {[%emt 0:00:10]} 43. Ba5 {[%emt 0:00:22]} Rg6+ {[%emt 0:00:41]} 44. Kf2 {[%emt 0:00:32]} Rf6+ {[%emt 0:01:03]} 45. Kg2 {[%emt 0:00:12]} Rf4 {[%emt 0:00:45]} 46. Re2+ {[%emt 0:00:49]} Kf7 {[%emt 0:00:14]} 47. Rc2 {[%emt 0:00:33]} Rc4 {[%emt 0:00:36]} 48. Rf2+ {[%emt 0:00:12]} Kg6 {[%emt 0:00:18]} 49. Rd2 {[%emt 0:00:41]} Rc6 {[%emt 0:00:29]} 50. Re2 {[%emt 0:00:27]} Rbc3 {[%emt 0:00:15]} 51. Rf2 {[%emt 0:00:44]} Re6 {[%emt 0:01:06]} 52. Rd2 {[%emt 0:00:29]} Rec6 {[%emt 0:00:31]} 53. Rf2 {[%emt 0:00:09]} Ra3 {[%emt 0:01:05]} 1/2-1/2

[Event "FRA-ch Youth U20W 2019"]
[Site "Hyeres"]
[Date "2019.04.18"]
[Round "6.2"]
[White "Fretel, Liza"]
[Black "Ranguin, Anna"]
[Result "1-0"]
[ECO "A06"]
[WhiteElo "1892"]
[BlackElo "1539"]
[Annotator "NA"]
[PlyCount "67"]
[EventDate "2019.04.14"]
[EventType "swiss"]
[EventCountry "FRA"]
[SourceTitle "playchess.com"]
[Source "ChessBase"]
[SourceQuality "1"]
[TimeControl "5400+30"]

1. e3 {[%emt 0:00:00]} d5 {[%emt 0:00:00]} 2. b3 {[%emt 0:00:00]} c5 {[%emt 0:01:27]} 3. Bb2 {[%emt 0:00:01]} Nf6 {[%emt 0:01:05]} 4. Nf3 {[%emt 0:00:23]} Bg4 {[%emt 0:01:10]} 5. Bb5+ {[%emt 0:04:47]} Nc6 {[%emt 0:04:22]} 6. h3 {[%emt 0:01:05]} Bh5 {[%emt 0:03:43]} 7. g4 {[%emt 0:04:41]} Bg6 {[%emt 0:00:50]} 8. Ne5 {[%emt 0:01:02]} Qc7 {[%emt 0:02:31]} 9. d3 {[%emt 0:09:15]} a6 {[%emt 0:01:54]} 10. Bxc6+ {[%emt 0:00:08]} bxc6 {[%emt 0:00:11]} 11. Nd2 {[%emt 0:01:17]} e6 {[%emt 0:02:30]} 12. h4 {[%emt 0:07:49]} Bd6 {[%emt 0:04:48]} 13. f4 {[%emt 0:01:24]} h6 {[%emt 0:02:53]} 14. Nxg6 {[%emt 0:00:54]} fxg6 {[%emt 0:00:17]} 15. Qe2 {[%emt 0:03:55]} Qe7 {[%emt 0:06:37]} 16. O-O-O {[%emt 0:01:58]} e5 {[%emt 0:05:24]} 17. g5 {[%emt 0:12:01]} Nh5 {[%emt 0:01:24]} 18. Qg4 {[%emt 0:01:19]} hxg5 {[%emt 0:04:46]} 19. hxg5 {[%emt 0:01:27]} Rf8 {[%emt 0:07:36]} 20. Rde1 {[%emt 0:01:58]} Kd8 {[%emt 0:02:44]} 21. fxe5 {[%emt 0:07:19]} Bxe5 {[%emt 0:01:11]} 22. d4 {[%emt 0:03:27]} Bd6 {[%emt 0:03:06]} 23. e4 {[%emt 0:01:28]} Rf4 {[%emt 0:01:18]} 24. Qg2 {[%emt 0:00:19]} Qf7 {[%emt 0:08:37]} 25. Re2 {[%emt 0:06:02]} cxd4 {[%emt 0:02:11]} 26. Bxd4 {[%emt 0:00:32]} dxe4 {[%emt 0:03:13]} 27. Nxe4 {[%emt 0:02:16]} Ba3+ {[%emt 0:01:07]} 28. Bb2 {[%emt 0:00:37]} Bxb2+ {[%emt 0:01:29]} 29. Kxb2 {[%emt 0:00:05]} Kc7 {[%emt 0:01:35]} 30. Rd1 {[%emt 0:03:26]} Qf8 {[%emt 0:06:31]} 31. Qg1 {[%emt 0:02:35]} a5 {[%emt 0:03:27]} 32. Nc5 {[%emt 0:00:55]} Re8 {[%emt 0:05:45]} 33. Na6+ {[%emt 0:01:45]} Kc8 {[%emt 0:02:15]} 34. Qa7 {[%emt 0:00:29]} 1-0

[Event "FRA-ch Youth U20W 2019"]
[Site "Hyeres"]
[Date "2019.04.18"]
[Round "6.3"]
[White "Bellahcene, Anissa"]
[Black "Pigeat, Typhaine"]
[Result "0-1"]
[ECO "B22"]
[WhiteElo "1816"]
[BlackElo "1742"]
[Annotator "NA"]
[PlyCount "58"]
[EventDate "2019.04.14"]
[EventType "swiss"]
[EventCountry "FRA"]
[SourceTitle "playchess.com"]
[Source "ChessBase"]
[SourceQuality "1"]
[TimeControl "5400+30"]

1. e4 {[%emt 0:00:00]} c5 {[%emt 0:00:00]} 2. c3 {[%emt 0:00:00]} d5 {[%emt 0:00:14]} 3. exd5 {[%emt 0:00:00]} Qxd5 {[%emt 0:00:15]} 4. d4 {[%emt 0:00:44]} cxd4 {[%emt 0:02:23]} 5. cxd4 {[%emt 0:00:06]} Nc6 {[%emt 0:01:16]} 6. Nf3 {[%emt 0:00:27]} Bg4 {[%emt 0:05:23]} 7. Be2 {[%emt 0:00:53]} e6 {[%emt 0:02:10]} 8. Nc3 {[%emt 0:02:54]} Qd7 {[%emt 0:05:05]} 9. Be3 {[%emt 0:00:46]} Nf6 {[%emt 0:04:01]} 10. O-O {[%emt 0:00:17]} Be7 {[%emt 0:12:02]} 11. Qb3 {[%emt 0:05:59]} Rd8 {[%emt 0:06:55]} 12. Rfd1 {[%emt 0:01:12]} Nd5 {[%emt 0:09:56]} 13. Ne5 {[%emt 0:06:54]} Nxe5 {[%emt 0:02:13]} 14. dxe5 {[%emt 0:00:06]} Bxe2 {[%emt 0:00:17]} 15. Nxe2 {[%emt 0:00:16]} b6 {[%emt 0:01:03]} 16. Rac1 {[%emt 0:12:52]} Qb7 {[%emt 0:08:54]} 17. Qa4+ {[%emt 0:04:42]} Rd7 {[%emt 0:04:12]} 18. Rd3 {[%emt 0:19:16]} O-O {[%emt 0:02:44]} 19. Qg4 {[%emt 0:00:39]} Nxe3 {[%emt 0:01:15]} 20. Rxe3 {[%emt 0:00:17]} Rfd8 {[%emt 0:03:34]} 21. Nf4 {[%emt 0:03:44]} Rd4 {[%emt 0:07:50]} 22. h4 {[%emt 0:04:13]} Qd7 {[%emt 0:04:00]} 23. Rce1 {[%emt 0:02:35]} Qa4 {[%emt 0:02:47]} 24. Rf3 {[%emt 0:04:55]} Rc8 {[%emt 0:07:24]} 25. Qg3 {[%emt 0:00:41]} Qb4 {[%emt 0:03:46]} 26. Rc3 {[%emt 0:05:06]} Rcd8 {[%emt 0:01:36]} 27. Nd3 {[%emt 0:04:39]} Rxd3 {[%emt 0:00:23]} 28. Re3 {[%emt 0:08:14]} Rxc3 {[%emt 0:02:22]} 29. Rxc3 {[%emt 0:00:27]} Rd1+ {[%emt 0:00:00]} 0-1

[Event "FRA-ch Youth U20W 2019"]
[Site "Hyeres"]
[Date "2019.04.18"]
[Round "6.5"]
[White "Budak, Lori"]
[Black "Guigue, Marie-Celine"]
[Result "0-1"]
[ECO "B03"]
[WhiteElo "1679"]
[BlackElo "1338"]
[Annotator "NA"]
[PlyCount "64"]
[EventDate "2019.04.14"]
[EventType "swiss"]
[EventCountry "FRA"]
[SourceTitle "playchess.com"]
[Source "ChessBase"]
[SourceQuality "1"]
[TimeControl "5400+30"]

1. e4 {[%emt 0:00:00]} Nf6 {[%emt 0:00:00]} 2. e5 {[%emt 0:00:00]} Nd5 {[%emt 0:00:00]} 3. c4 {[%emt 0:00:00]} Nb6 {[%emt 0:00:00]} 4. d4 {[%emt 0:00:07]} d6 {[%emt 0:00:06]} 5. exd6 {[%emt 0:00:06]} cxd6 {[%emt 0:00:06]} 6. d5 {[%emt 0:00:17]} g6 {[%emt 0:00:09]} 7. Qd4 {[%emt 0:00:14]} e5 {[%emt 0:31:31]} 8. dxe6 {[%emt 0:01:48]} f6 {[%emt 0:01:25]} 9. Nc3 {[%emt 0:12:25]} Bxe6 {[%emt 0:05:10]} 10. Qe4 {[%emt 0:00:26]} Qe7 {[%emt 0:00:17]} 11. Nb5 {[%emt 0:05:42]} Kf7 {[%emt 0:11:14]} 12. Bf4 {[%emt 0:07:24]} d5 {[%emt 0:08:52]} 13. Qe3 {[%emt 0:25:44]} Qb4+ {[%emt 0:03:38]} 14. Qd2 {[%emt 0:06:23]} Nc6 {[%emt 0:03:07]} 15. Rc1 {[%emt 0:05:59]} dxc4 {[%emt 0:05:07]} 16. Nc7 {[%emt 0:06:15]} Rd8 {[%emt 0:00:28]} 17. Qc3 {[%emt 0:00:44]} Na4 {[%emt 0:03:14]} 18. Qxb4 {[%emt 0:03:24]} Bxb4+ {[%emt 0:02:55]} 19. Ke2 {[%emt 0:00:04]} Nd4+ {[%emt 0:01:43]} 20. Ke3 {[%emt 0:01:16]} Nf5+ {[%emt 0:00:30]} 21. Kf3 {[%emt 0:01:40]} Nxb2 {[%emt 0:09:41]} 22. Nxe6 {[%emt 0:01:06]} Kxe6 {[%emt 0:01:17]} 23. Bxc4+ {[%emt 0:00:36]} Nxc4 {[%emt 0:01:44]} 24. Rxc4 {[%emt 0:00:02]} Bd6 {[%emt 0:02:41]} 25. Nh3 {[%emt 0:03:41]} g5 {[%emt 0:02:00]} 26. Re4+ {[%emt 0:07:20]} Kf7 {[%emt 0:01:08]} 27. Bxd6 {[%emt 0:02:05]} Rxd6 {[%emt 0:00:16]} 28. Rhe1 {[%emt 0:01:12]} Rd3+ {[%emt 0:01:28]} 29. Kg4 {[%emt 0:00:40]} Kg6 {[%emt 0:00:46]} 30. Nf4+ {[%emt 0:02:55]} gxf4 {[%emt 0:00:27]} 31. Kxf4 {[%emt 0:00:03]} Rd2 {[%emt 0:02:06]} 32. g4 {[%emt 0:02:12]} Rxf2# {[%emt 0:02:54]} 0-1

[Event "FRA-ch Youth U20W 2019"]
[Site "Hyeres"]
[Date "2019.04.18"]
[Round "6.6"]
[White "Azan, Sarah"]
[Black "Fromherz, Audrey"]
[Result "0-1"]
[ECO "B50"]
[WhiteElo "1349"]
[BlackElo "1531"]
[Annotator "NA"]
[PlyCount "81"]
[EventDate "2019.04.14"]
[EventType "swiss"]
[EventCountry "FRA"]
[SourceTitle "playchess.com"]
[Source "ChessBase"]
[SourceQuality "1"]
[TimeControl "5400+30"]

1. e4 {[%emt 0:00:00]} c5 {[%emt 0:00:01]} 2. Nf3 {[%emt 0:00:00]} d6 {[%emt 0:00:46]} 3. c3 {[%emt 0:00:38]} Nf6 {[%emt 0:00:50]} 4. h3 {[%emt 0:00:28]} g6 {[%emt 0:01:19]} 5. Bd3 {[%emt 0:00:26]} Bg7 {[%emt 0:00:51]} 6. Bc2 {[%emt 0:00:24]} O-O {[%emt 0:01:48]} 7. O-O {[%emt 0:00:24]} Nc6 {[%emt 0:01:11]} 8. a3 {[%emt 0:00:27]} Bd7 {[%emt 0:18:10]} 9. Re1 {[%emt 0:16:31]} b5 {[%emt 0:02:38]} 10. d4 {[%emt 0:04:30]} cxd4 {[%emt 0:07:29]} 11. cxd4 {[%emt 0:00:27]} Rc8 {[%emt 0:19:24]} 12. b4 {[%emt 0:05:36]} a5 {[%emt 0:10:34]} 13. Bd2 {[%emt 0:05:15]} Qc7 {[%emt 0:05:13]} 14. Ra2 {[%emt 0:07:10]} axb4 {[%emt 0:03:15]} 15. Bxb4 {[%emt 0:03:27]} Nxb4 {[%emt 0:00:25]} 16. axb4 {[%emt 0:00:08]} Ra8 {[%emt 0:05:25]} 17. Rxa8 {[%emt 0:08:01]} Rxa8 {[%emt 0:00:12]} 18. Bb3 {[%emt 0:00:30]} e6 {[%emt 0:00:30]} 19. e5 {[%emt 0:00:30]} Nd5 {[%emt 0:00:30]} 20. Qd2 {[%emt 0:00:30]} Rc8 {[%emt 0:00:30]} 21. Bxd5 {[%emt 0:00:30]} exd5 {[%emt 0:00:30]} 22. Qg5 {[%emt 0:19:25]} Bf5 {[%emt 0:14:48]} 23. Nh4 {[%emt 0:02:03]} Bxb1 {[%emt 0:02:19]} 24. Rxb1 {[%emt 0:00:10]} dxe5 {[%emt 0:00:58]} 25. dxe5 {[%emt 0:00:32]} Qxe5 {[%emt 0:00:11]} 26. Qg4 {[%emt 0:01:41]} Rc4 {[%emt 0:00:43]} 27. Nf3 {[%emt 0:04:21]} Qd6 {[%emt 0:00:59]} 28. Qg5 {[%emt 0:00:50]} Rxb4 {[%emt 0:00:55]} 29. Rxb4 {[%emt 0:00:30]} Qxb4 {[%emt 0:00:30]} 30. Qxd5 {[%emt 0:00:30]} Qb1+ {[%emt 0:00:30]} 31. Kh2 {[%emt 0:00:30]} b4 {[%emt 0:00:30]} 32. Ng5 {[%emt 0:00:30]} Qf5 {[%emt 0:00:30]} 33. Qd8+ {[%emt 0:00:30]} Bf8 {[%emt 0:00:30]} 34. Nxh7 {[%emt 0:00:30]} Kxh7 {[%emt 0:00:30]} 35. Qxf8 {[%emt 0:00:30]} b3 {[%emt 0:00:30]} 36. Qb4 {[%emt 0:00:30]} Qc2 {[%emt 0:00:30]} 37. Qh4+ {[%emt 0:00:30]} Kg7 {[%emt 0:00:30]} 38. Qd4+ {[%emt 0:00:30]} f6 {[%emt 0:00:30]} 39. g4 {[%emt 0:00:30]} b2 {[%emt 0:00:30]} 40. g5 {[%emt 0:02:49]} Qc7+ {[%emt 0:00:46]} 41. Qf4 {[%emt 0:00:30]} 0-1

[Event "FRA-ch Youth U20W 2019"]
[Site "Hyeres"]
[Date "2019.04.19"]
[Round "7.1"]
[White "Aouachria, Marwa"]
[Black "Sonet, Sandy"]
[Result "1-0"]
[ECO "B03"]
[WhiteElo "1738"]
[BlackElo "1616"]
[Annotator "NA"]
[PlyCount "71"]
[EventDate "2019.04.14"]
[EventType "swiss"]
[EventCountry "FRA"]
[SourceTitle "playchess.com"]
[Source "ChessBase"]
[SourceQuality "1"]
[TimeControl "5400+30"]

1. e4 {[%emt 0:00:00]} Nf6 {[%emt 0:00:00]} 2. e5 {[%emt 0:00:00]} Nd5 {[%emt 0:00:00]} 3. d4 {[%emt 0:00:00]} d6 {[%emt 0:00:00]} 4. Bc4 {[%emt 0:01:46]} Nb6 {[%emt 0:04:06]} 5. Bb3 {[%emt 0:04:27]} dxe5 {[%emt 0:02:52]} 6. Qh5 {[%emt 0:00:04]} e6 {[%emt 0:00:31]} 7. dxe5 {[%emt 0:00:06]} a5 {[%emt 0:04:41]} 8. a4 {[%emt 0:04:29]} Na6 {[%emt 0:05:55]} 9. Be3 {[%emt 0:07:33]} Nc5 {[%emt 0:29:13]} 10. Bxc5 {[%emt 0:08:29]} Bxc5 {[%emt 0:00:17]} 11. Nf3 {[%emt 0:00:20]} g6 {[%emt 0:06:17]} 12. Qg4 {[%emt 0:05:27]} O-O {[%emt 0:17:39]} 13. h4 {[%emt 0:11:28]} h5 {[%emt 0:08:34]} 14. Qf4 {[%emt 0:05:15]} Nd5 {[%emt 0:12:19]} 15. Qh6 {[%emt 0:04:23]} Be7 {[%emt 0:00:33]} 16. g4 {[%emt 0:01:12]} Re8 {[%emt 0:02:43]} 17. gxh5 {[%emt 0:07:55]} Bf8 {[%emt 0:00:26]} 18. Qd2 {[%emt 0:00:07]} Ne7 {[%emt 0:02:00]} 19. Qe2 {[%emt 0:00:59]} Bh6 {[%emt 0:00:38]} 20. Rg1 {[%emt 0:00:41]} Kh8 {[%emt 0:00:20]} 21. Ng5 {[%emt 0:08:12]} Bxg5 {[%emt 0:00:15]} 22. Rxg5 {[%emt 0:00:12]} Qd4 {[%emt 0:01:03]} 23. hxg6 {[%emt 0:02:02]} fxg6 {[%emt 0:00:05]} 24. Nc3 {[%emt 0:00:39]} Qxh4 {[%emt 0:00:54]} 25. Rg1 {[%emt 0:01:29]} Qf4 {[%emt 0:00:37]} 26. Rg4 {[%emt 0:00:58]} Qh6 {[%emt 0:00:26]} 27. Qe4 {[%emt 0:00:33]} Kg7 {[%emt 0:00:27]} 28. f4 {[%emt 0:01:14]} Nf5 {[%emt 0:00:22]} 29. O-O-O {[%emt 0:00:20]} Qh8 {[%emt 0:00:40]} 30. Rdg1 {[%emt 0:00:21]} Qh7 {[%emt 0:00:28]} 31. Rxg6+ {[%emt 0:02:15]} Qxg6 {[%emt 0:00:19]} 32. Rxg6+ {[%emt 0:00:04]} Kxg6 {[%emt 0:00:02]} 33. Qg2+ {[%emt 0:00:11]} Kf7 {[%emt 0:01:03]} 34. Qg5 {[%emt 0:00:11]} Kf8 {[%emt 0:00:41]} 35. Qf6+ {[%emt 0:00:15]} Kg8 {[%emt 0:00:06]} 36. Qxf5 {[%emt 0:24:23]} 1-0